[Event "Live Chess"]
[Site "Chess.com"]
[Date "2024.06.02"]
[Round "-"]
[White "Larchikov"]
[Black "NAZRIZ1977"]
[Result "1-0"]
[WhiteElo "2114"]
[BlackElo "2059"]
[TimeControl "300"]
[EndTime "7:21:28 PDT"]
[Termination "Larchikov won by resignation"]

1. c4 {[%clk 0:04:55.6]} 1... d5 {[%clk 0:04:49.1]} 2. cxd5 {[%clk 0:04:53.9]}
2... c6 {[%clk 0:04:48.5]} 3. dxc6 {[%clk 0:04:51.1]} 3... Nxc6 {[%clk
0:04:47.6]} 4. d4 {[%clk 0:04:51]} 4... Qxd4 {[%clk 0:04:44.3]} 5. Nc3 {[%clk
0:04:46]} 5... Qxd1+ {[%clk 0:04:42.5]} 6. Kxd1 {[%clk 0:04:42.5]} 6... Nf6
{[%clk 0:04:40.3]} 7. e4 {[%clk 0:04:40.1]} 7... Bg4+ {[%clk 0:04:36.9]} 8. f3
{[%clk 0:04:37.8]} 8... O-O-O+ {[%clk 0:04:35.3]} 9. Kc2 {[%clk 0:04:36.4]} 9...
Nd4+ {[%clk 0:04:31.1]} 10. Kb1 {[%clk 0:04:31.8]} 10... Bh5 {[%clk 0:04:14.9]}
11. Be3 {[%clk 0:04:26.6]} 11... e5 {[%clk 0:04:10]} 12. h4 {[%clk 0:04:24.3]}
12... h6 {[%clk 0:04:07.3]} 13. Bc4 {[%clk 0:04:18.2]} 13... Ne6 {[%clk
0:03:54.6]} 14. Nge2 {[%clk 0:04:10.2]} 14... Kb8 {[%clk 0:03:49.4]} 15. Kc2
{[%clk 0:03:48.3]} 15... Bb4 {[%clk 0:03:44.4]} 16. Rhd1 {[%clk 0:03:44.6]}
16... Rxd1 {[%clk 0:03:36.3]} 17. Rxd1 {[%clk 0:03:44.5]} 17... Bxc3 {[%clk
0:03:35.6]} 18. Nxc3 {[%clk 0:03:41.6]} 18... Rc8 {[%clk 0:03:28]} 19. Bxe6
{[%clk 0:03:37.6]} 19... fxe6 {[%clk 0:03:26.5]} 20. Rd6 {[%clk 0:03:36.1]}
20... Bf7 {[%clk 0:03:25]} 21. Bf2 {[%clk 0:03:28.8]} 21... a6 {[%clk
0:03:23.6]} 22. Bg3 {[%clk 0:03:26.3]} 22... Rc5 {[%clk 0:03:15.3]} 23. b4
{[%clk 0:03:22.5]} 23... Rc6 {[%clk 0:03:10]} 24. Bxe5 {[%clk 0:03:16.1]} 24...
Rxd6 {[%clk 0:03:07.6]} 25. Bxd6+ {[%clk 0:03:16]} 25... Kc8 {[%clk 0:03:05.4]}
26. Ne2 {[%clk 0:03:04.3]} 26... Kd7 {[%clk 0:03:05.3]} 27. Be5 {[%clk
0:03:02.8]} 27... Be8 {[%clk 0:03:00.3]} 28. Kb3 {[%clk 0:02:54.6]} 28... Bf7
{[%clk 0:02:57.2]} 29. a4 {[%clk 0:02:50.4]} 29... Kc6 {[%clk 0:02:56.2]} 30.
Nd4+ {[%clk 0:02:48.8]} 30... Kb6 {[%clk 0:02:54.2]} 31. Kc3 {[%clk 0:02:42.9]}
31... a5 {[%clk 0:02:48.9]} 32. b5 {[%clk 0:02:32]} 32... Kc5 {[%clk 0:02:47.4]}
33. Nb3+ {[%clk 0:02:30.6]} 33... Kb6 {[%clk 0:02:45.5]} 34. Bd4+ {[%clk
0:02:29.8]} 34... Kc7 {[%clk 0:02:44.3]} 35. Nxa5 {[%clk 0:02:29.4]} 1-0

[Event "Live Chess"]
[Site "Chess.com"]
[Date "2024.06.02"]
[Round "-"]
[White "TheSmoulderingMaster"]
[Black "DylanMeyer1"]
[Result "0-1"]
[WhiteElo "1772"]
[BlackElo "1734"]
[TimeControl "300"]
[EndTime "7:21:37 PDT"]
[Termination "DylanMeyer1 won by resignation"]

1. e4 {[%clk 0:04:58]} 1... d5 {[%clk 0:04:59.6]} 2. exd5 {[%clk 0:04:56.2]}
2... Qxd5 {[%clk 0:04:59.5]} 3. Nc3 {[%clk 0:04:54.9]} 3... Qd6 {[%clk
0:04:59.4]} 4. Nf3 {[%clk 0:04:53.9]} 4... Nf6 {[%clk 0:04:59.1]} 5. d4 {[%clk
0:04:52.5]} 5... e6 {[%clk 0:04:58.2]} 6. Bd3 {[%clk 0:04:49.2]} 6... Be7 {[%clk
0:04:57.8]} 7. O-O {[%clk 0:04:47.9]} 7... O-O {[%clk 0:04:57.5]} 8. g3 {[%clk
0:04:44.6]} 8... a6 {[%clk 0:04:56]} 9. Bf4 {[%clk 0:04:42.2]} 9... Qb6 {[%clk
0:04:55.5]} 10. Ne5 {[%clk 0:04:41.2]} 10... c5 {[%clk 0:04:53.5]} 11. dxc5
{[%clk 0:04:28.4]} 11... Qxc5 {[%clk 0:04:51.3]} 12. Qf3 {[%clk 0:04:23.7]}
12... Nc6 {[%clk 0:04:45.6]} 13. Ng4 {[%clk 0:04:19.1]} 13... Nxg4 {[%clk
0:04:29.1]} 14. Qxg4 {[%clk 0:04:16.8]} 14... e5 {[%clk 0:04:07.5]} 15. Ne4
{[%clk 0:04:11.2]} 15... Bxg4 {[%clk 0:04:04.7]} 16. Nxc5 {[%clk 0:04:08.9]}
16... Bxc5 {[%clk 0:04:03.2]} 0-1

[Event "Live Chess"]
[Site "Chess.com"]
[Date "2024.06.02"]
[Round "-"]
[White "Crowded_House"]
[Black "gmnorfolk"]
[Result "0-1"]
[WhiteElo "1644"]
[BlackElo "2157"]
[TimeControl "300"]
[EndTime "7:21:45 PDT"]
[Termination "gmnorfolk won by checkmate"]

1. d4 {[%clk 0:04:58.5]} 1... Nf6 {[%clk 0:04:58.4]} 2. Bg5 {[%clk 0:04:57.6]}
2... d5 {[%clk 0:04:56.9]} 3. e3 {[%clk 0:04:56.6]} 3... c5 {[%clk 0:04:55]} 4.
c3 {[%clk 0:04:55.1]} 4... Nc6 {[%clk 0:04:51.8]} 5. Bd3 {[%clk 0:04:54.1]} 5...
Qb6 {[%clk 0:04:45.9]} 6. Qb3 {[%clk 0:04:47.4]} 6... c4 {[%clk 0:04:44.8]} 7.
Qxb6 {[%clk 0:04:46.1]} 7... axb6 {[%clk 0:04:44.7]} 8. Bc2 {[%clk 0:04:45.1]}
8... b5 {[%clk 0:04:44.6]} 9. Nf3 {[%clk 0:04:33.7]} 9... b4 {[%clk 0:04:42.7]}
10. b3 {[%clk 0:04:21.8]} 10... cxb3 {[%clk 0:04:38]} 11. Bxb3 {[%clk
0:04:19.7]} 11... Ne4 {[%clk 0:04:33.5]} 12. cxb4 {[%clk 0:04:05.6]} 12... e5
{[%clk 0:04:29.7]} 13. dxe5 {[%clk 0:03:46.1]} 13... Bxb4+ {[%clk 0:04:26.5]}
14. Ke2 {[%clk 0:03:38.6]} 14... b6 {[%clk 0:04:25.1]} 15. Nbd2 {[%clk
0:03:31.5]} 15... Ba6+ {[%clk 0:04:19.8]} 16. Ke1 {[%clk 0:03:26.2]} 16... Nxg5
{[%clk 0:04:12.6]} 17. Nxg5 {[%clk 0:03:24.3]} 17... Nxe5 {[%clk 0:04:10.8]} 18.
Bxd5 {[%clk 0:03:12.5]} 18... O-O-O {[%clk 0:04:07.5]} 19. e4 {[%clk 0:03:06.9]}
19... Nd3+ {[%clk 0:03:56]} 20. Ke2 {[%clk 0:02:56.9]} 20... Nf4+ {[%clk
0:03:48.2]} 21. Ke3 {[%clk 0:02:52.5]} 21... Nxd5+ {[%clk 0:03:46.9]} 22. exd5
{[%clk 0:02:51.6]} 22... Rhe8+ {[%clk 0:03:41]} 23. Kf3 {[%clk 0:02:43.4]} 23...
Bxd2 {[%clk 0:03:36.3]} 24. Nxf7 {[%clk 0:02:31.9]} 24... Rf8 {[%clk 0:03:34.6]}
25. Rad1 {[%clk 0:02:28.5]} 25... Rxf7+ {[%clk 0:03:32.7]} 26. Kg3 {[%clk
0:02:27.8]} 26... Bf4+ {[%clk 0:03:31.1]} 27. Kh3 {[%clk 0:02:26.4]} 27... Kb8
{[%clk 0:03:26.2]} 28. Rhe1 {[%clk 0:02:19.1]} 28... Bc8+ {[%clk 0:03:24.7]} 29.
Kh4 {[%clk 0:02:16.6]} 29... h5 {[%clk 0:03:18.7]} 30. g3 {[%clk 0:02:15.7]}
30... g5+ {[%clk 0:03:17.5]} 31. Kxh5 {[%clk 0:02:14.8]} 31... Rh8+ {[%clk
0:03:15]} 32. Kg6 {[%clk 0:02:14]} 32... Rhf8 {[%clk 0:02:57.2]} 33. Rb1 {[%clk
0:01:44.1]} 33... Bf5+ {[%clk 0:02:53.3]} 34. Kh5 {[%clk 0:01:40.7]} 34... Rh7#
{[%clk 0:02:51.1]} 0-1

[Event "Live Chess"]
[Site "Chess.com"]
[Date "2024.06.02"]
[Round "-"]
[White "AndyJWise"]
[Black "missedJariChance"]
[Result "1-0"]
[WhiteElo "1045"]
[BlackElo "1366"]
[TimeControl "300"]
[EndTime "7:21:59 PDT"]
[Termination "AndyJWise won by resignation"]

1. d4 {[%clk 0:04:57.3]} 1... d5 {[%clk 0:04:54.6]} 2. c4 {[%clk 0:04:55.8]}
2... e6 {[%clk 0:04:53.4]} 3. Nc3 {[%clk 0:04:54.7]} 3... Nf6 {[%clk 0:04:51.9]}
4. Bg5 {[%clk 0:04:53.6]} 4... Be7 {[%clk 0:04:50.4]} 5. Nf3 {[%clk 0:04:51.8]}
5... c5 {[%clk 0:04:46.1]} 6. cxd5 {[%clk 0:04:40.4]} 6... Nxd5 {[%clk
0:04:44.2]} 7. Bxe7 {[%clk 0:04:38.5]} 7... Nxe7 {[%clk 0:04:42.7]} 8. dxc5
{[%clk 0:04:33.8]} 8... O-O {[%clk 0:04:36.7]} 9. Ne5 {[%clk 0:04:25.1]} 9...
Nd5 {[%clk 0:04:29.8]} 10. Nxd5 {[%clk 0:04:22.2]} 10... Qxd5 {[%clk 0:04:25]}
11. Qxd5 {[%clk 0:04:20]} 11... exd5 {[%clk 0:04:22.7]} 12. e3 {[%clk
0:04:14.5]} 12... Be6 {[%clk 0:04:21.3]} 13. Bd3 {[%clk 0:04:11.4]} 13... Nd7
{[%clk 0:04:16.8]} 14. Nxd7 {[%clk 0:04:09.8]} 14... Bxd7 {[%clk 0:04:15.7]} 15.
O-O {[%clk 0:04:08]} 15... Rac8 {[%clk 0:04:14.3]} 16. b4 {[%clk 0:04:06.4]}
16... Be6 {[%clk 0:04:00.6]} 17. a3 {[%clk 0:03:54.6]} 17... Rfd8 {[%clk
0:03:58.6]} 18. Rfd1 {[%clk 0:03:50.9]} 18... Re8 {[%clk 0:03:54.4]} 19. e4
{[%clk 0:03:33.6]} 19... Bg4 {[%clk 0:03:48.3]} 20. Re1 {[%clk 0:03:27.5]} 20...
dxe4 {[%clk 0:03:41.6]} 21. Bxe4 {[%clk 0:03:23.2]} 21... Rc7 {[%clk 0:03:28.1]}
22. f3 {[%clk 0:03:15.9]} 22... Be6 {[%clk 0:03:21.3]} 23. Kf2 {[%clk
0:03:14.5]} 23... Rce7 {[%clk 0:03:13.3]} 24. g4 {[%clk 0:03:12.7]} 24... g6
{[%clk 0:03:09.5]} 25. Rac1 {[%clk 0:02:55.1]} 25... Kg7 {[%clk 0:02:58.8]} 26.
c6 {[%clk 0:02:50.8]} 26... bxc6 {[%clk 0:02:55.9]} 27. Bxc6 {[%clk 0:02:48.2]}
27... Rc8 {[%clk 0:02:42.2]} 28. Be4 {[%clk 0:02:41.3]} 28... Rxc1 {[%clk
0:02:27.5]} 29. Rxc1 {[%clk 0:02:40.2]} 29... Bb3 {[%clk 0:02:22.4]} 30. h4
{[%clk 0:02:30]} 30... Ba4 {[%clk 0:02:16.2]} 31. h5 {[%clk 0:02:26]} 31... f6
{[%clk 0:02:05.1]} 32. hxg6 {[%clk 0:02:24]} 32... hxg6 {[%clk 0:02:03]} 33. Rc3
{[%clk 0:01:59.2]} 33... Re6 {[%clk 0:01:45.8]} 34. Rc7+ {[%clk 0:01:56.4]}
34... Kh6 {[%clk 0:01:43.9]} 35. Rxa7 {[%clk 0:01:55.1]} 35... Bc2 {[%clk
0:01:42.3]} 36. Bxc2 {[%clk 0:01:52.3]} 1-0

[Event "Live Chess"]
[Site "Chess.com"]
[Date "2024.06.02"]
[Round "-"]
[White "agamilewska"]
[Black "ShanthamGrarks"]
[Result "1-0"]
[WhiteElo "1754"]
[BlackElo "1920"]
[TimeControl "300"]
[EndTime "7:22:06 PDT"]
[Termination "agamilewska won by resignation"]

1. d4 {[%clk 0:04:57.1]} 1... Nf6 {[%clk 0:04:56.7]} 2. c4 {[%clk 0:04:56.3]}
2... e5 {[%clk 0:04:54.4]} 3. dxe5 {[%clk 0:04:55.2]} 3... Ng4 {[%clk
0:04:53.2]} 4. Nf3 {[%clk 0:04:54.8]} 4... Nc6 {[%clk 0:04:51.2]} 5. e4 {[%clk
0:04:54.3]} 5... Bc5 {[%clk 0:04:49.2]} 6. Be3 {[%clk 0:04:42.2]} 6... Nxe3
{[%clk 0:04:40.7]} 7. fxe3 {[%clk 0:04:42.1]} 7... Bxe3 {[%clk 0:04:39.6]} 8.
Nc3 {[%clk 0:04:35.2]} 8... O-O {[%clk 0:04:32.7]} 9. Qd3 {[%clk 0:04:31.4]}
9... Bh6 {[%clk 0:04:25.9]} 10. Be2 {[%clk 0:04:25.2]} 10... Nb4 {[%clk
0:04:23.1]} 11. Qd1 {[%clk 0:04:20.3]} 11... d6 {[%clk 0:04:20.8]} 12. exd6
{[%clk 0:04:18.8]} 12... cxd6 {[%clk 0:04:17.3]} 13. O-O {[%clk 0:04:17.4]}
13... Be6 {[%clk 0:04:13.5]} 14. a3 {[%clk 0:04:15.5]} 14... Nc6 {[%clk
0:04:04.1]} 15. Nd5 {[%clk 0:04:11.8]} 15... Bxd5 {[%clk 0:04:01.3]} 16. cxd5
{[%clk 0:04:10.6]} 16... Ne7 {[%clk 0:03:51.6]} 17. Nh4 {[%clk 0:04:07.7]} 17...
Qb6+ {[%clk 0:03:45.5]} 18. Kh1 {[%clk 0:04:03.4]} 18... Qxb2 {[%clk 0:03:43.9]}
19. Rb1 {[%clk 0:03:55.8]} 19... Qxa3 {[%clk 0:03:37.5]} 20. Rxb7 {[%clk
0:03:55]} 20... Ng6 {[%clk 0:03:33.7]} 21. Nf5 {[%clk 0:03:50.9]} 21... Be3
{[%clk 0:03:22.4]} 22. Rb3 {[%clk 0:03:41]} 22... Qc5 {[%clk 0:03:05.7]} 23. Bh5
{[%clk 0:03:31.8]} 23... Bg5 {[%clk 0:02:57]} 24. h4 {[%clk 0:02:58.8]} 24...
Bd8 {[%clk 0:02:50]} 25. Rh3 {[%clk 0:02:09.5]} 25... Ne5 {[%clk 0:02:44]} 26.
Rg3 {[%clk 0:01:38.7]} 26... g6 {[%clk 0:02:41.4]} 27. Nh6+ {[%clk 0:01:37.2]}
27... Kg7 {[%clk 0:02:39.9]} 28. Nf5+ {[%clk 0:01:34]} 28... Kh8 {[%clk
0:02:38.7]} 29. Ne3 {[%clk 0:01:20.9]} 29... Bxh4 {[%clk 0:02:35.4]} 30. Rh3
{[%clk 0:01:18.8]} 30... Bg5 {[%clk 0:02:27.7]} 31. Ng4 {[%clk 0:01:06.2]} 31...
Nxg4 {[%clk 0:02:07.7]} 32. Qxg4 {[%clk 0:01:06.1]} 32... Qc4 {[%clk 0:01:16.5]}
33. Rd1 {[%clk 0:00:40]} 33... h6 {[%clk 0:00:51.3]} 34. Bxg6 {[%clk 0:00:37.5]}
34... fxg6 {[%clk 0:00:38.6]} 35. Qxg5 {[%clk 0:00:36.9]} 35... Rf1+ {[%clk
0:00:37.1]} 36. Rxf1 {[%clk 0:00:35.2]} 36... Qxf1+ {[%clk 0:00:36.6]} 37. Kh2
{[%clk 0:00:34.6]} 37... Qf8 {[%clk 0:00:22.6]} 38. Rxh6+ {[%clk 0:00:33.9]}
38... Qxh6+ {[%clk 0:00:14.7]} 39. Qxh6+ {[%clk 0:00:33.4]} 39... Kg8 {[%clk
0:00:14.5]} 40. Qxg6+ {[%clk 0:00:32.6]} 40... Kf8 {[%clk 0:00:14.3]} 41. Qxd6+
{[%clk 0:00:32.1]} 41... Ke8 {[%clk 0:00:13.6]} 42. Qc6+ {[%clk 0:00:31.5]}
42... Kd8 {[%clk 0:00:12.9]} 43. Qxa8+ {[%clk 0:00:31.1]} 43... Kc7 {[%clk
0:00:12.5]} 44. Qxa7+ {[%clk 0:00:30.7]} 44... Kd6 {[%clk 0:00:12.1]} 45. e5+
{[%clk 0:00:29.4]} 45... Kxe5 {[%clk 0:00:11.2]} 46. Qd7 {[%clk 0:00:27.7]} 1-0

[Event "Live Chess"]
[Site "Chess.com"]
[Date "2024.06.02"]
[Round "-"]
[White "Bradfield133"]
[Black "GEMdzq"]
[Result "0-1"]
[WhiteElo "1843"]
[BlackElo "2275"]
[TimeControl "300"]
[EndTime "7:22:18 PDT"]
[Termination "GEMdzq won by resignation"]

1. c4 {[%clk 0:04:56.4]} 1... Nf6 {[%clk 0:04:57.8]} 2. g3 {[%clk 0:04:55.4]}
2... e6 {[%clk 0:04:56]} 3. Nf3 {[%clk 0:04:53.2]} 3... d5 {[%clk 0:04:55.9]} 4.
b3 {[%clk 0:04:51.8]} 4... Be7 {[%clk 0:04:50.8]} 5. Bb2 {[%clk 0:04:50.3]} 5...
O-O {[%clk 0:04:50.7]} 6. Bg2 {[%clk 0:04:49]} 6... c5 {[%clk 0:04:49.9]} 7.
cxd5 {[%clk 0:04:46.5]} 7... exd5 {[%clk 0:04:49.2]} 8. d4 {[%clk 0:04:45.3]}
8... Nc6 {[%clk 0:04:47]} 9. O-O {[%clk 0:04:41.7]} 9... Bf5 {[%clk 0:04:46.5]}
10. Nc3 {[%clk 0:04:38.7]} 10... Ne4 {[%clk 0:04:42.9]} 11. dxc5 {[%clk
0:04:26.3]} 11... Nxc3 {[%clk 0:04:39.7]} 12. Bxc3 {[%clk 0:04:22.1]} 12... Bxc5
{[%clk 0:04:38.8]} 13. Nd4 {[%clk 0:04:13.5]} 13... Be6 {[%clk 0:04:26.1]} 14.
a3 {[%clk 0:03:57.6]} 14... Rc8 {[%clk 0:04:20.9]} 15. b4 {[%clk 0:03:47.1]}
15... Be7 {[%clk 0:04:19]} 16. Nxe6 {[%clk 0:03:36.6]} 16... fxe6 {[%clk
0:04:17.5]} 17. Bh3 {[%clk 0:03:35.8]} 17... Qd6 {[%clk 0:04:14.1]} 18. Rc1
{[%clk 0:03:25.4]} 18... d4 {[%clk 0:03:53.7]} 19. Bb2 {[%clk 0:03:18.3]} 19...
Rcd8 {[%clk 0:03:48.7]} 20. Qb3 {[%clk 0:03:00.4]} 20... Rf6 {[%clk 0:03:40.4]}
21. e3 {[%clk 0:02:47.2]} 21... Rh6 {[%clk 0:03:38.6]} 22. Bg2 {[%clk
0:02:28.2]} 22... dxe3 {[%clk 0:03:24.2]} 23. Qxe3 {[%clk 0:02:17.1]} 23... Qd2
{[%clk 0:03:11.7]} 24. Qxd2 {[%clk 0:01:55.7]} 24... Rxd2 {[%clk 0:03:11.6]} 25.
Rxc6 {[%clk 0:01:49.8]} 25... bxc6 {[%clk 0:03:06.7]} 26. Bc1 {[%clk 0:01:48.7]}
26... Ra2 {[%clk 0:02:59.3]} 27. Bxh6 {[%clk 0:01:47]} 27... gxh6 {[%clk
0:02:59]} 28. Bxc6 {[%clk 0:01:39.3]} 28... Rxa3 {[%clk 0:02:55]} 29. b5 {[%clk
0:01:37.2]} 29... Bc5 {[%clk 0:02:52.3]} 30. Kg2 {[%clk 0:01:14.8]} 30... Ra2
{[%clk 0:02:49.5]} 31. Kf3 {[%clk 0:01:13.3]} 31... Kf7 {[%clk 0:02:48.3]} 32.
Be4 {[%clk 0:00:59.6]} 32... Kg7 {[%clk 0:02:43.6]} 33. h4 {[%clk 0:00:49.7]}
33... Rb2 {[%clk 0:02:42.5]} 34. Bc6 {[%clk 0:00:47.5]} 34... h5 {[%clk
0:02:39.1]} 35. Bd7 {[%clk 0:00:34.3]} 35... Kf6 {[%clk 0:02:36.2]} 36. Bc6
{[%clk 0:00:33.1]} 36... Ke7 {[%clk 0:02:28]} 37. Kg2 {[%clk 0:00:31.8]} 37...
h6 {[%clk 0:02:26]} 38. Kf3 {[%clk 0:00:28.9]} 38... Kd6 {[%clk 0:02:24.2]} 39.
Be8 {[%clk 0:00:24.1]} 39... Bb6 {[%clk 0:02:16.4]} 40. Bxh5 {[%clk 0:00:16.9]}
40... Rxb5 {[%clk 0:02:14.9]} 41. Re1 {[%clk 0:00:13.5]} 41... Rxh5 {[%clk
0:02:13.3]} 0-1

[Event "Live Chess"]
[Site "Chess.com"]
[Date "2024.06.02"]
[Round "-"]
[White "RichardABates"]
[Black "ProfPoisson"]
[Result "1-0"]
[WhiteElo "2369"]
[BlackElo "1330"]
[TimeControl "300"]
[EndTime "7:22:24 PDT"]
[Termination "RichardABates won by resignation"]

1. d4 {[%clk 0:04:57.1]} 1... e6 {[%clk 0:04:57.7]} 2. c4 {[%clk 0:04:55.2]}
2... f5 {[%clk 0:04:56.4]} 3. g3 {[%clk 0:04:51.4]} 3... Nf6 {[%clk 0:04:54.7]}
4. Nf3 {[%clk 0:04:49.8]} 4... Be7 {[%clk 0:04:50.3]} 5. Bg2 {[%clk 0:04:48.3]}
5... d6 {[%clk 0:04:49.8]} 6. O-O {[%clk 0:04:47.3]} 6... O-O {[%clk 0:04:49.2]}
7. Nc3 {[%clk 0:04:44.8]} 7... Ne4 {[%clk 0:04:47.1]} 8. Qd3 {[%clk 0:04:39.4]}
8... Nxc3 {[%clk 0:04:40.8]} 9. bxc3 {[%clk 0:04:37.4]} 9... a5 {[%clk
0:04:36.8]} 10. e4 {[%clk 0:04:32]} 10... fxe4 {[%clk 0:04:29.7]} 11. Qxe4
{[%clk 0:04:30.7]} 11... c6 {[%clk 0:04:28]} 12. h4 {[%clk 0:04:27.4]} 12... Nd7
{[%clk 0:04:19.5]} 13. Bg5 {[%clk 0:04:23.7]} 13... Nf6 {[%clk 0:04:14.8]} 14.
Qe2 {[%clk 0:04:17.1]} 14... Ng4 {[%clk 0:04:04]} 15. Bh3 {[%clk 0:04:14.4]}
15... Bxg5 {[%clk 0:04:00.1]} 16. Nxg5 {[%clk 0:04:12.4]} 16... Nf6 {[%clk
0:03:50.6]} 17. Bxe6+ {[%clk 0:04:09.3]} 17... Bxe6 {[%clk 0:03:48]} 18. Qxe6+
{[%clk 0:04:06.3]} 18... Kh8 {[%clk 0:03:41.1]} 19. Nf7+ {[%clk 0:04:04.9]}
19... Rxf7 {[%clk 0:03:40.3]} 20. Qxf7 {[%clk 0:04:03.7]} 20... Rb8 {[%clk
0:03:23.5]} 21. Rfe1 {[%clk 0:03:57.6]} 21... Qf8 {[%clk 0:03:08.9]} 22. Qxf8+
{[%clk 0:03:55.4]} 22... Rxf8 {[%clk 0:03:07.6]} 23. Re7 {[%clk 0:03:53.8]}
23... Ne4 {[%clk 0:03:06.2]} 24. Rxe4 {[%clk 0:03:51.9]} 24... h5 {[%clk
0:02:59.9]} 1-0

[Event "Live Chess"]
[Site "Chess.com"]
[Date "2024.06.02"]
[Round "-"]
[White "Plimsol"]
[Black "Dashman93"]
[Result "1-0"]
[WhiteElo "2372"]
[BlackElo "2144"]
[TimeControl "300"]
[EndTime "7:22:31 PDT"]
[Termination "Plimsol won by checkmate"]

1. e4 {[%clk 0:04:58.4]} 1... e5 {[%clk 0:04:56.4]} 2. Nf3 {[%clk 0:04:57.1]}
2... Nf6 {[%clk 0:04:55.7]} 3. d4 {[%clk 0:04:55.7]} 3... exd4 {[%clk
0:04:46.9]} 4. e5 {[%clk 0:04:51.1]} 4... Ne4 {[%clk 0:04:44.4]} 5. Qe2 {[%clk
0:04:50]} 5... Nc5 {[%clk 0:04:38.7]} 6. Nxd4 {[%clk 0:04:47]} 6... Nc6 {[%clk
0:04:36.9]} 7. Nxc6 {[%clk 0:04:12.1]} 7... dxc6 {[%clk 0:04:34.5]} 8. Nc3
{[%clk 0:04:09]} 8... Be7 {[%clk 0:04:33.3]} 9. Bf4 {[%clk 0:04:05.4]} 9... Bf5
{[%clk 0:04:31.6]} 10. Rd1 {[%clk 0:04:03.3]} 10... Qc8 {[%clk 0:04:30.4]} 11.
h3 {[%clk 0:04:00.6]} 11... O-O {[%clk 0:04:29]} 12. Qe3 {[%clk 0:04:00.1]}
12... Ne6 {[%clk 0:04:26.9]} 13. Bd3 {[%clk 0:03:53.8]} 13... Bxd3 {[%clk
0:04:20.4]} 14. Rxd3 {[%clk 0:03:52.9]} 14... Bc5 {[%clk 0:04:15.2]} 15. Qf3
{[%clk 0:03:45.8]} 15... Rd8 {[%clk 0:04:14.1]} 16. Rxd8+ {[%clk 0:03:42]} 16...
Qxd8 {[%clk 0:04:14]} 17. O-O {[%clk 0:03:41.5]} 17... Qe7 {[%clk 0:04:09.5]}
18. Ne4 {[%clk 0:03:38.4]} 18... Rd8 {[%clk 0:04:06.9]} 19. Be3 {[%clk
0:03:35.1]} 19... Bb6 {[%clk 0:04:01.5]} 20. Bxb6 {[%clk 0:03:31]} 20... axb6
{[%clk 0:03:58.7]} 21. Rd1 {[%clk 0:03:19.5]} 21... Nd4 {[%clk 0:03:51.8]} 22.
Qd3 {[%clk 0:03:17.8]} 22... Ne6 {[%clk 0:03:43.5]} 23. Qf1 {[%clk 0:03:02.7]}
23... Rd5 {[%clk 0:03:38.5]} 24. Rxd5 {[%clk 0:02:54.3]} 24... cxd5 {[%clk
0:03:37.6]} 25. Nc3 {[%clk 0:02:53.4]} 25... d4 {[%clk 0:03:34.3]} 26. Ne4
{[%clk 0:02:50]} 26... Nc5 {[%clk 0:03:30.5]} 27. Nxc5 {[%clk 0:02:45.6]} 27...
Qxc5 {[%clk 0:03:30.4]} 28. Qe2 {[%clk 0:02:45]} 28... Kf8 {[%clk 0:03:25.9]}
29. a3 {[%clk 0:02:43.7]} 29... Ke7 {[%clk 0:03:24.9]} 30. Qe4 {[%clk
0:02:42.1]} 30... g6 {[%clk 0:03:20.3]} 31. Qh4+ {[%clk 0:02:18.2]} 31... Kf8
{[%clk 0:03:09.8]} 32. Qd8+ {[%clk 0:02:14.1]} 32... Kg7 {[%clk 0:03:08.9]} 33.
Qf6+ {[%clk 0:02:14]} 33... Kf8 {[%clk 0:03:08]} 34. e6 {[%clk 0:02:11.7]} 34...
Qe7 {[%clk 0:03:05.3]} 35. Qh8# {[%clk 0:02:09.7]} 1-0

[Event "Live Chess"]
[Site "Chess.com"]
[Date "2024.06.02"]
[Round "-"]
[White "Nazar-Makarchuk"]
[Black "degringolade64"]
[Result "0-1"]
[WhiteElo "1474"]
[BlackElo "2071"]
[TimeControl "300"]
[EndTime "7:22:34 PDT"]
[Termination "degringolade64 won by resignation"]

1. e4 {[%clk 0:04:53.5]} 1... e5 {[%clk 0:04:55.7]} 2. Nf3 {[%clk 0:04:52.2]}
2... Nc6 {[%clk 0:04:54]} 3. Bb5 {[%clk 0:04:51.4]} 3... a6 {[%clk 0:04:52.1]}
4. Bxc6 {[%clk 0:04:51]} 4... dxc6 {[%clk 0:04:50.9]} 5. O-O {[%clk 0:04:50.7]}
5... Qf6 {[%clk 0:04:49.4]} 6. d4 {[%clk 0:04:49.9]} 6... exd4 {[%clk
0:04:48.3]} 7. Qxd4 {[%clk 0:04:49.4]} 7... Qxd4 {[%clk 0:04:46.2]} 8. Nxd4
{[%clk 0:04:49]} 8... Bd7 {[%clk 0:04:45]} 9. Nc3 {[%clk 0:04:47.8]} 9... O-O-O
{[%clk 0:04:42.8]} 10. Be3 {[%clk 0:04:46.1]} 10... Ne7 {[%clk 0:04:38.9]} 11.
Nf3 {[%clk 0:04:44.8]} 11... Ng6 {[%clk 0:04:31.8]} 12. Ng5 {[%clk 0:04:31.5]}
12... Be8 {[%clk 0:04:28.2]} 13. Rfd1 {[%clk 0:04:26.7]} 13... h6 {[%clk
0:04:26]} 14. Rxd8+ {[%clk 0:04:24.6]} 14... Kxd8 {[%clk 0:04:25.1]} 15. Nf3
{[%clk 0:04:23.1]} 15... Bd7 {[%clk 0:04:16.1]} 16. Rd1 {[%clk 0:04:22.2]} 16...
Kc8 {[%clk 0:04:14.2]} 17. e5 {[%clk 0:04:17.9]} 17... b6 {[%clk 0:04:05.4]} 18.
Ne4 {[%clk 0:03:54.4]} 18... Be7 {[%clk 0:04:02]} 19. Ng3 {[%clk 0:03:52.9]}
19... Re8 {[%clk 0:03:59.1]} 20. Nd4 {[%clk 0:03:45.4]} 20... Nxe5 {[%clk
0:03:52.3]} 21. Ndf5 {[%clk 0:03:42.2]} 21... Bf8 {[%clk 0:03:50.9]} 22. Bd4
{[%clk 0:03:35.8]} 22... c5 {[%clk 0:03:47.4]} 23. Bxe5 {[%clk 0:03:34.8]} 23...
Rxe5 {[%clk 0:03:45.7]} 24. Ne3 {[%clk 0:03:31.7]} 24... Bc6 {[%clk 0:03:36.5]}
25. c3 {[%clk 0:03:25.3]} 25... g6 {[%clk 0:03:32.6]} 26. Ne2 {[%clk 0:03:24]}
26... Be7 {[%clk 0:03:23.9]} 27. Nf4 {[%clk 0:03:21.9]} 27... Bg5 {[%clk
0:03:20]} 28. Nd3 {[%clk 0:03:17]} 28... Re8 {[%clk 0:03:11.8]} 29. Nc1 {[%clk
0:03:10.4]} 29... Bxe3 {[%clk 0:03:07.2]} 30. fxe3 {[%clk 0:03:09.9]} 30... Rxe3
{[%clk 0:03:06.3]} 31. Kf2 {[%clk 0:03:08.2]} 31... Re6 {[%clk 0:02:53.1]} 32.
Rd3 {[%clk 0:03:06.7]} 32... f5 {[%clk 0:02:43.3]} 33. Re3 {[%clk 0:03:04.9]}
33... Rxe3 {[%clk 0:02:39.9]} 34. Kxe3 {[%clk 0:03:04]} 34... Bxg2 {[%clk
0:02:39.6]} 35. Kf4 {[%clk 0:03:01.7]} 35... Kd7 {[%clk 0:02:35.3]} 36. Ke5
{[%clk 0:03:01.1]} 36... Ke7 {[%clk 0:02:34.2]} 37. Ne2 {[%clk 0:02:59.7]} 37...
Be4 {[%clk 0:02:27.8]} 38. Nf4 {[%clk 0:02:58.5]} 38... g5 {[%clk 0:02:25.6]}
39. Ng6+ {[%clk 0:02:54.7]} 39... Kf7 {[%clk 0:02:19.1]} 40. Nf4 {[%clk
0:02:42.7]} 40... gxf4 {[%clk 0:02:17.6]} 41. Kxf4 {[%clk 0:02:42.4]} 41... Kf6
{[%clk 0:02:16.3]} 42. h4 {[%clk 0:02:41]} 42... c4 {[%clk 0:02:11.6]} 43. b3
{[%clk 0:02:39.7]} 43... cxb3 {[%clk 0:02:10.4]} 44. axb3 {[%clk 0:02:38.6]}
44... b5 {[%clk 0:02:08.7]} 45. b4 {[%clk 0:02:37.6]} 45... h5 {[%clk
0:02:03.1]} 46. Ke3 {[%clk 0:02:34.3]} 46... Ke5 {[%clk 0:02:02.2]} 47. Kd2
{[%clk 0:02:31.8]} 47... f4 {[%clk 0:02:00.7]} 48. Ke2 {[%clk 0:02:30.9]} 48...
Kf5 {[%clk 0:01:59.6]} 49. Kf2 {[%clk 0:02:29.9]} 49... Kg4 {[%clk 0:01:59.2]}
0-1